bitfinex-derivatives/quotes_BTCF0:USTF0_20250915
["timestamp","ask_amount","ask_price","bid_price","bid_amount"]
[1757941139339,0.74575044,114770.0,114760.0,0.83447]
[1757941139734,0.4750854,114770.0,114760.0,0.83447]
[1757941140037,0.4750854,114770.0,114760.0,0.83435]
[1757941140439,0.4650854,114770.0,114760.0,0.83435]
[1757941140627,0.4750854,114770.0,114760.0,0.83435]
[1757941141239,0.4986071,114770.0,114760.0,0.83435]
[1757941141939,0.76927214,114770.0,114760.0,0.83435]
[1757941143240,0.76927214,114770.0,114760.0,0.83391]
[1757941143437,0.74575044,114770.0,114760.0,0.83391]
[1757941144246,0.76928984,114770.0,114760.0,0.83391]
[1757941144542,0.76928984,114770.0,114760.0,0.02275]
[1757941144844,0.76928984,114770.0,114760.0,0.83367]
[1757941145844,0.4986248,114770.0,114760.0,0.83367]
[1757941146044,0.76928984,114770.0,114760.0,0.02275]
[1757941146239,0.76928984,114770.0,114760.0,0.83335]
[1757941147042,0.75928984,114770.0,114760.0,0.83335]
[1757941147243,0.76928984,114770.0,114760.0,0.83335]
[1757941147842,0.76928984,114770.0,114760.0,0.83311]
[1757941148742,0.74575044,114770.0,114760.0,0.83311]
[1757941149243,0.76929617,114770.0,114760.0,0.83311]
[1757941150236,0.76929617,114770.0,114760.0,0.83255]
[1757941151344,0.76929617,114770.0,114760.0,0.83243]
[1757941152046,0.76929617,114770.0,114760.0,0.83227]
[1757941153244,0.76929617,114770.0,114760.0,0.83211]
[1757941154741,0.47463113,114770.0,114760.0,1.11111504]
[1757941154940,0.48463113,114770.0,114760.0,1.11111504]
[1757941155846,0.3708,114770.0,114760.0,1.36111504]
[1757941156236,0.40552,114780.0,114770.0,0.03228]
[1757941156440,0.42907809,114780.0,114770.0,0.30294504]
[1757941157147,0.40552,114780.0,114770.0,0.30294504]
[1757941158244,0.3929,114780.0,114770.0,0.30294504]
[1757941158949,0.46122615,114780.0,114770.0,0.30294504]
[1757941159553,0.46122615,114780.0,114770.0,0.30394504]
[1757941160152,0.46122615,114780.0,114770.0,0.30494504]
[1757941160344,0.3708,114780.0,114770.0,0.30494504]
[1757941160951,0.3708,114780.0,114770.0,0.55494504]
[1757941161750,0.3608,114780.0,114770.0,0.55494504]
[1757941161957,0.3708,114780.0,114770.0,0.55494504]
[1757941162254,0.01,114780.0,114770.0,0.55494504]
[1757941162655,0.39375421,114790.0,114770.0,0.55494504]
[1757941162858,0.44939178,114790.0,114780.0,1.07866504]
[1757941163061,0.42585421,114790.0,114780.0,1.07866504]
[1757941163958,0.42585421,114790.0,114780.0,1.08530504]
[1757941164160,0.49558149,114790.0,114780.0,1.08530504]
[1757941166062,0.49558149,114790.0,114780.0,0.29330504]
[1757941166262,0.49558149,114790.0,114780.0,1.10054504]
[1757941168273,0.49558149,114790.0,114780.0,0.29330504]
[1757941168655,0.49558149,114790.0,114780.0,0.82924]
[1757941171165,0.49558149,114790.0,114780.0,1.09990504]
[1757941172667,0.49558149,114790.0,114780.0,0.82924]
[1757941173069,0.49558149,114790.0,114780.0,1.09990504]
[1757941173970,0.48296149,114790.0,114780.0,1.10654504]
[1757941174468,0.47296149,114790.0,114780.0,1.10654504]
[1757941176169,0.48296149,114790.0,114780.0,1.10654504]
[1757941177368,0.47296149,114790.0,114780.0,1.10654504]
[1757941177572,0.3708,114790.0,114780.0,1.37721008]
[1757941177967,0.3708,114790.0,114780.0,1.10654504]
[1757941179170,0.3708,114790.0,114780.0,1.10754504]
[1757941180268,0.3708,114790.0,114780.0,1.11492927]
[1757941180473,0.3708,114790.0,114780.0,1.11592927]
[1757941180871,0.3708,114790.0,114780.0,1.11492927]
[1757941181175,0.3708,114790.0,114780.0,1.11692927]
[1757941181469,0.3708,114790.0,114780.0,1.11792927]
[1757941181665,0.3708,114790.0,114780.0,1.10854504]
[1757941181972,0.39287,114790.0,114780.0,0.8376]
[1757941182272,0.39287,114790.0,114780.0,1.10826504]
[1757941184366,0.03207,114790.0,114780.0,1.10826504]
[1757941185778,0.03207,114790.0,114780.0,0.8376]
[1757941186074,0.03207,114790.0,114780.0,1.10826504]
[1757941186873,0.03207,114790.0,114780.0,0.30394504]
[1757941187074,0.03207,114790.0,114780.0,1.10766504]
[1757941189969,0.92666504,114790.0,114780.0,0.02664]
[1757941190275,0.95018864,114790.0,114780.0,0.77728]
[1757941190475,0.95018864,114790.0,114780.0,0.02664]
[1757941190676,0.95018864,114790.0,114780.0,0.83016]
[1757941191176,0.95018864,114790.0,114780.0,0.82816]
[1757941191373,0.95018864,114790.0,114780.0,0.82716]
[1757941191977,0.95018864,114790.0,114780.0,0.82616]
[1757941193979,0.6795236,114790.0,114780.0,0.82616]
[1757941194179,0.95018864,114790.0,114780.0,0.82616]
[1757941195776,0.95014524,114790.0,114780.0,0.82616]
[1757941196578,0.92662164,114790.0,114780.0,0.82616]
[1757941196777,0.95013789,114790.0,114780.0,0.82616]
[1757941197384,0.92662164,114790.0,114780.0,0.82616]
[1757941199279,0.95013627,114790.0,114780.0,1.09618164]
[1757941199482,0.67951463,114790.0,114780.0,1.09618164]
[1757941199682,0.66349164,114790.0,114780.0,1.37644328]
[1757941200177,0.66349164,114790.0,114780.0,0.82556]
[1757941200178,0.67625164,114790.0,114780.0,0.82556]
[1757941200485,0.67625164,114790.0,114780.0,1.09618164]
[1757941201184,0.40563,114790.0,114780.0,0.82556]
[1757941201484,0.67625164,114790.0,114780.0,1.09618164]
[1757941202286,0.67625164,114790.0,114780.0,1.36680328]
[1757941203783,0.67625164,114790.0,114780.0,1.09618164]
[1757941208781,0.01,114790.0,114780.0,1.37644328]
[1757941208983,0.01,114790.0,114780.0,2.80786492]
[1757941209289,0.10136463,114810.0,114800.0,0.03309]
[1757941209589,0.10136463,114810.0,114800.0,3.78693328]
[1757941209887,0.09136463,114810.0,114800.0,3.78693328]
[1757941210078,0.3608,114820.0,114810.0,0.00664]
[1757941210283,0.3708,114820.0,114810.0,1.25974164]
[1757941210485,0.66417164,114820.0,114810.0,2.06226164]
[1757941211089,0.04551,114820.0,114810.0,2.06226164]
[1757941211978,0.31613164,114820.0,114810.0,1.10326164]
[1757941212178,0.31613164,114820.0,114810.0,1.10346164]
[1757941212588,0.04551,114820.0,114810.0,1.10346164]
[1757941212788,0.31613164,114820.0,114810.0,1.10346164]
[1757941214691,0.04551,114820.0,114810.0,1.09654164]
[1757941215192,0.31613164,114820.0,114810.0,1.09654164]
[1757941215885,0.67693164,114820.0,114810.0,1.09650164]
[1757941221097,0.67693164,114820.0,114810.0,0.82588]
[1757941221301,0.67693164,114820.0,114810.0,1.09650164]
[1757941221696,0.94755328,114820.0,114810.0,1.09650164]
[1757941221898,1.46817492,114820.0,114810.0,0.001]
[1757941222100,1.22100393,114820.0,114810.0,0.001]
[1757941223087,1.22100393,114820.0,114810.0,0.02348]
[1757941232706,0.41976065,114820.0,114810.0,0.29410164]
[1757941232907,0.40631,114820.0,114810.0,0.54410164]
[1757941233214,0.67693164,114820.0,114810.0,0.55074164]
[1757941235513,0.67693164,114820.0,114810.0,0.54410164]
[1757941236816,0.67693164,114820.0,114810.0,0.27348]
[1757941237017,0.94755328,114820.0,114810.0,0.27348]
[1757941238114,0.97107517,114820.0,114810.0,0.27348]
[1757941239321,0.97107517,114820.0,114810.0,0.02348]
[1757941240219,0.94755328,114820.0,114810.0,0.02348]
[1757941241619,0.94755328,114820.0,114810.0,0.29410164]
[1757941241820,0.40631,114820.0,114810.0,0.29410164]
[1757941242021,0.94755328,114820.0,114810.0,0.29410164]
[1757941243323,0.97108043,114820.0,114810.0,0.29410164]
[1757941244228,0.70045879,114820.0,114810.0,0.29410164]
[1757941244425,0.67693164,114820.0,114810.0,0.29410164]
[1757941246024,0.39631,114820.0,114810.0,0.56472328]
[1757941246223,0.38355,114820.0,114810.0,0.30074164]
[1757941246526,0.39355,114820.0,114810.0,0.30074164]
[1757941247124,0.38283,114830.0,114820.0,0.03215]
[1757941247322,0.39283,114830.0,114820.0,1.62555328]
[1757941247527,0.3708,114830.0,114820.0,1.63320396]
[1757941247730,0.3708,114830.0,114820.0,1.65320396]
[1757941248624,0.3718,114830.0,114820.0,1.65320396]
[1757941249117,0.011,114830.0,114820.0,1.65320396]
[1757941249322,0.001,114830.0,114820.0,1.65320396]
[1757941249722,0.3708,114840.0,114830.0,0.01061]
[1757941249923,0.3708,114840.0,114830.0,0.30374164]
[1757941252131,1.19695328,114840.0,114830.0,0.02251]
[1757941252327,0.01288,114820.0,114810.0,0.02251]
[1757941252627,0.04491,114810.0,114800.0,0.02251]
[1757941252827,0.40571,114810.0,114800.0,0.82459]
[1757941253131,0.92633164,114810.0,114800.0,0.82459]
[1757941253429,0.92433164,114810.0,114800.0,0.82459]
[1757941253630,0.92333164,114810.0,114800.0,0.82459]
[1757941254133,0.92333164,114810.0,114800.0,0.82559]
[1757941254529,0.92333164,114810.0,114800.0,0.82659]
[1757941255326,0.92333164,114810.0,114800.0,1.09721164]
[1757941255635,0.67333164,114810.0,114800.0,0.002]
[1757941255935,0.70488092,114810.0,114800.0,0.002]
[1757941256233,0.68142911,114810.0,114800.0,0.002]
[1757941258231,0.67326602,114810.0,114800.0,0.02509]
[1757941259735,0.68138845,114810.0,114800.0,0.02509]
[1757941259931,0.74948781,114810.0,114800.0,0.02509]
[1757941262439,0.82323275,114810.0,114800.0,0.02509]
[1757941265039,0.82323275,114810.0,114800.0,0.002]
[1757941268434,1.41753371,114810.0,114800.0,0.002]
[1757941268640,0.03666,114770.0,114760.0,0.6130058]
[1757941268840,0.39746,114770.0,114760.0,0.6130058]
[1757941270338,0.39746,114770.0,114760.0,0.6180058]
[1757941270540,0.39746,114770.0,114760.0,0.6220058]
[1757941276744,0.38156,114780.0,114760.0,0.8786458]
[1757941276939,0.04366,114780.0,114770.0,0.36739096]
[1757941277343,0.40446,114780.0,114770.0,0.36739096]
[1757941279652,0.40446,114780.0,114770.0,0.37039096]
[1757941279954,0.40446,114780.0,114770.0,0.02609]
[1757941280156,0.40446,114780.0,114770.0,0.02309]
[1757941280352,0.74876096,114780.0,114770.0,0.02709]
[1757941280653,1.3664878,114780.0,114770.0,0.004]
[1757941280850,0.03666,114750.0,114740.0,0.02309]
[1757941281049,0.39746,114750.0,114740.0,0.02309]
[1757941281650,0.39546,114750.0,114740.0,0.02309]
[1757941282860,0.39546,114750.0,114740.0,0.36939096]
[1757941283755,0.39546,114750.0,114740.0,0.37039096]
[1757941283951,0.39546,114750.0,114740.0,0.02609]
[1757941284157,0.39546,114750.0,114740.0,0.37039096]
[1757941285660,1.40237109,114750.0,114740.0,0.003]
[1757941285863,0.0345,114720.0,114710.0,0.02241]
[1757941286359,0.0345,114720.0,114710.0,0.36671096]
[1757941287055,0.0345,114720.0,114710.0,0.37171096]
[1757941287261,0.0345,114720.0,114710.0,0.37471096]
[1757941287655,0.0345,114720.0,114710.0,0.36971096]
[1757941287860,0.0345,114720.0,114710.0,0.37271096]
[1757941288164,0.0345,114720.0,114710.0,0.36971096]
[1757941288364,0.0345,114720.0,114710.0,0.37071096]
[1757941290564,0.0345,114720.0,114710.0,0.02641]
[1757941290758,0.0345,114720.0,114710.0,0.37071096]
[1757941292869,0.0345,114720.0,114710.0,0.02641]
[1757941293164,0.0345,114720.0,114710.0,0.37071096]
[1757941293665,0.0345,114720.0,114710.0,0.02641]
[1757941294666,0.3953,114720.0,114710.0,0.02641]
[1757941296563,0.98960096,114720.0,114710.0,0.004]
[1757941296866,0.6453,114720.0,114710.0,0.004]
[1757941297065,0.98960096,114720.0,114710.0,0.02641]
[1757941297967,0.98960096,114720.0,114710.0,0.02241]
[1757941298266,0.6453,114720.0,114710.0,0.02241]
[1757941298466,1.01301167,114720.0,114710.0,0.02241]
[1757941298664,1.01301167,114720.0,114700.0,0.14908983]
[1757941298665,0.0345,114710.0,114700.0,0.14908983]
[1757941298864,0.0345,114710.0,114700.0,0.49339079]
[1757941299468,0.3953,114710.0,114700.0,0.14908983]
[1757941299660,0.4023,114710.0,114700.0,0.14908983]
[1757941299856,0.99660096,114710.0,114700.0,0.12667983]
[1757941300058,0.99660096,114710.0,114690.0,0.01777571]
[1757941300059,0.02816,114670.0,114660.0,0.03516]
[1757941300268,0.05055419,114670.0,114660.0,0.37946096]
[1757941300465,0.03039419,114670.0,114660.0,0.75510956]
[1757941300765,0.007,114670.0,114660.0,0.06650764]
[1757941301067,0.02716,114670.0,114660.0,0.4108086]
[1757941301469,0.03016,114670.0,114660.0,0.4108086]
[1757941301770,0.03016,114670.0,114660.0,0.06650764]
[1757941302263,0.003,114670.0,114660.0,1.62570261]
[1757941302459,0.005,114670.0,114660.0,1.62570261]
[1757941303265,0.005,114670.0,114660.0,0.94730764]
[1757941303564,0.005,114670.0,114660.0,1.10570261]
[1757941303770,0.005,114670.0,114660.0,1.62570261]
[1757941304663,0.006,114690.0,114680.0,0.01275]
[1757941304970,0.38796,114690.0,114680.0,0.06650764]
[1757941305362,0.63796,114690.0,114680.0,0.03516]
[1757941305569,0.63796,114690.0,114670.0,0.01275]
[1757941305570,1.10305647,114690.0,114670.0,0.01275]
[1757941305767,0.38196,114680.0,114670.0,0.06650764]
[1757941307670,0.02116,114680.0,114670.0,0.06650764]
[1757941307870,0.02416,114680.0,114670.0,0.06650764]
[1757941308073,0.005,114680.0,114670.0,0.76289234]
[1757941308270,0.005,114680.0,114670.0,0.33449737]
[1757941309368,0.02616,114680.0,114670.0,0.33449737]
[1757941309569,0.38696,114680.0,114670.0,0.08449737]
[1757941311777,0.41035515,114680.0,114670.0,0.08449737]
[1757941312679,0.41035515,114680.0,114670.0,0.05314973]
[1757941313079,0.41035515,114680.0,114670.0,0.08449737]
[1757941314878,0.3658,114680.0,114670.0,0.08449737]
[1757941315286,0.005,114680.0,114670.0,0.08449737]
[1757941315589,0.005,114680.0,114670.0,0.51289234]
[1757941315792,0.005,114680.0,114670.0,0.62346109]
[1757941316088,0.005,114680.0,114670.0,0.87346109]
[1757941316385,0.005,114680.0,114670.0,1.23426109]
[1757941316986,0.005,114680.0,114670.0,1.83426109]
[1757941319783,0.3668,114710.0,114700.0,0.03506]
[1757941319988,0.39007961,114710.0,114700.0,0.03506]
[1757941320387,0.39007961,114710.0,114700.0,0.06640764]
[1757941320887,0.41311961,114710.0,114700.0,0.06640764]
[1757941321090,0.42511961,114710.0,114700.0,0.06740764]
[1757941321988,0.42411961,114710.0,114700.0,0.06640764]
[1757941322194,0.42211961,114710.0,114700.0,0.06640764]
[1757941322884,1.21108333,114710.0,114700.0,0.02203]
[1757941323088,1.22141333,114710.0,114690.0,0.03048267]
[1757941323392,0.38384,114700.0,114690.0,0.08386031]
[1757941323593,0.40711961,114700.0,114690.0,0.08386031]
[1757941324997,0.41011961,114700.0,114690.0,0.08386031]
[1757941325191,0.41211961,114700.0,114690.0,0.05251267]
[1757941325991,1.20408333,114700.0,114690.0,0.01745267]
[1757941326493,0.66511961,114700.0,114690.0,0.03948267]
[1757941326685,1.20408333,114700.0,114690.0,0.03948267]
[1757941328597,0.38907961,114700.0,114690.0,0.62282403]
[1757941329301,0.005,114700.0,114690.0,0.87282403]
[1757941329498,0.005,114700.0,114690.0,1.23362403]
[1757941331502,0.005,114700.0,114690.0,0.69466031]
[1757941331694,0.005,114700.0,114690.0,1.23362403]
[1757941332899,0.005,114700.0,114690.0,0.87282403]
[1757941333096,0.38884,114700.0,114690.0,0.33386031]
[1757941333294,0.02804,114700.0,114690.0,0.62282403]
[1757941333499,0.38884,114700.0,114690.0,0.08386031]
[1757941334902,0.38884,114700.0,114690.0,0.05251267]
[1757941335202,0.63884,114700.0,114690.0,0.05251267]
[1757941335597,1.18813372,114700.0,114690.0,0.03948267]
[1757941335897,0.66195756,114700.0,114690.0,0.05251267]
[1757941336298,0.66195929,114700.0,114690.0,0.05251267]
[1757941338206,0.66196192,114700.0,114690.0,0.05251267]
[1757941339006,0.63884,114700.0,114690.0,0.05251267]
[1757941339708,0.98376855,114700.0,114690.0,0.05251267]
[1757941340306,0.98376855,114700.0,114690.0,0.39744122]
[1757941341103,0.63884,114700.0,114690.0,0.39744122]
[1757941341303,0.98376855,114700.0,114690.0,0.39744122]
[1757941342108,0.38884,114700.0,114690.0,0.42878886]
[1757941342409,0.3658,114700.0,114690.0,0.42878886]
[1757941342603,0.011,114700.0,114690.0,1.35316977]
[1757941343002,0.011,114700.0,114690.0,1.38451741]
[1757941343203,0.011,114700.0,114690.0,1.03958886]
[1757941343602,0.011,114700.0,114690.0,1.38451741]
[1757941343998,0.005,114700.0,114690.0,2.01167871]
[1757941344600,0.005,114700.0,114690.0,1.23466031]
[1757941344801,0.005,114700.0,114690.0,1.92451741]
[1757941345812,0.005,114700.0,114690.0,1.93859954]
[1757941346415,0.005,114700.0,114690.0,1.85143824]
[1757941347011,0.005,114700.0,114690.0,1.31274564]
[1757941347414,0.005,114700.0,114690.0,1.85143824]
[1757941348218,0.006,114720.0,114690.0,1.93859954]
[1757941348419,0.006,114720.0,114710.0,0.96531024]
[1757941348709,0.006,114720.0,114710.0,1.07032408]
[1757941348916,0.3668,114740.0,114730.0,0.01312]
[1757941349111,0.35866626,114740.0,114730.0,0.60451024]
[1757941349416,0.35866626,114740.0,114730.0,0.5731626]
[1757941349910,0.38102423,114750.0,114730.0,0.60451024]
[1757941350110,0.40332423,114750.0,114740.0,0.03447]
[1757941350314,0.3891,114750.0,114740.0,0.03447]
[1757941350912,0.37059989,114750.0,114740.0,0.03447]
[1757941351216,0.37259989,114750.0,114740.0,0.03447]
[1757941351615,0.37059989,114750.0,114740.0,0.03447]
[1757941351817,0.37459989,114750.0,114740.0,0.03447]
[1757941352914,0.00645,114740.0,114730.0,0.03447]
[1757941353120,0.9282426,114740.0,114730.0,0.02135]
[1757941353421,0.0283,114730.0,114720.0,0.05185821]
[1757941353618,0.3891,114730.0,114720.0,0.05185821]
[1757941355013,0.3901,114730.0,114720.0,0.05185821]
[1757941355917,0.40271,114730.0,114720.0,0.03873821]
[1757941356124,0.9414026,114730.0,114710.0,0.39178774]
[1757941356423,0.9434026,114730.0,114720.0,0.02135]
[1757941356623,0.40471,114730.0,114720.0,0.02135]
[1757941357224,0.3911,114730.0,114720.0,0.03447]
[1757941358323,0.3901,114730.0,114720.0,0.03447]
[1757941358526,0.3921,114730.0,114720.0,0.03447]
[1757941359927,0.40471,114730.0,114720.0,0.02135]
[1757941362019,0.9434026,114730.0,114720.0,0.02135]
[1757941362728,0.9434026,114730.0,114710.0,0.03098774]
[1757941362922,0.9344026,114720.0,114710.0,0.03921774]
[1757941363228,0.39571,114720.0,114710.0,0.08368538]
[1757941363429,0.3831,114720.0,114710.0,0.08368538]
[1757941364226,0.0223,114720.0,114710.0,0.08368538]
[1757941364824,0.0233,114720.0,114710.0,0.08368538]
[1757941367729,0.36806835,114720.0,114710.0,0.42845373]
[1757941368524,0.0233,114720.0,114710.0,0.42845373]
[1757941368724,0.007,114720.0,114710.0,0.42845373]
[1757941369537,0.001,114720.0,114710.0,1.38402208]
[1757941370435,0.001,114720.0,114710.0,1.03925373]
[1757941370733,0.001,114720.0,114710.0,1.38402208]
[1757941370927,0.001,114720.0,114710.0,0.69448538]
[1757941371120,0.001,114720.0,114710.0,1.38402208]
[1757941372825,0.001,114720.0,114710.0,1.89267444]
[1757941373028,0.001,114720.0,114710.0,1.92402208]
[1757941375833,0.006,114730.0,114720.0,0.03615]
[1757941376133,0.3608,114750.0,114740.0,0.03615]
[1757941376134,0.38874,114750.0,114740.0,0.03615]
[1757941376436,0.38874,114750.0,114740.0,0.75703434]
[1757941376732,0.3668,114750.0,114740.0,0.75703434]
[1757941376927,0.02629916,114760.0,114750.0,0.03615]
[1757941377124,0.04823916,114760.0,114750.0,0.75703434]
[1757941377438,0.42959184,114770.0,114760.0,0.03615]
[1757941377439,0.38274,114770.0,114760.0,0.03615]
[1757941377636,0.38274,114770.0,114760.0,0.75703434]
[1757941377838,0.38274,114770.0,114760.0,0.03615]
[1757941378635,0.38774,114770.0,114760.0,0.03615]
[1757941380040,0.37857959,114770.0,114760.0,0.03615]
[1757941382336,0.37857959,114770.0,114760.0,0.46386678]
[1757941382539,0.03294,114770.0,114760.0,0.46386678]
[1757941382933,0.03294,114770.0,114760.0,0.49521442]
[1757941383641,0.03094,114770.0,114760.0,0.49521442]
[1757941383942,0.02894,114770.0,114760.0,0.49521442]
[1757941384443,0.007,114770.0,114760.0,0.85601442]
[1757941384834,0.007,114770.0,114760.0,0.49521442]
[1757941385140,0.02894,114770.0,114760.0,0.49521442]
[1757941385539,0.02894,114770.0,114760.0,0.06749764]
[1757941387042,0.007,114770.0,114760.0,0.49521442]
[1757941387236,0.3608,114780.0,114760.0,0.74521442]
[1757941387442,0.3608,114780.0,114770.0,0.49521442]
[1757941388448,0.3638,114780.0,114770.0,0.49521442]
[1757941388650,0.003,114780.0,114770.0,0.49521442]
[1757941388949,0.007,114780.0,114770.0,1.30317442]
[1757941389151,0.007,114780.0,114770.0,1.66397442]
[1757941389356,0.007,114780.0,114770.0,1.91397442]
[1757941390455,0.006,114780.0,114770.0,1.91397442]
[1757941391852,0.38274,114800.0,114790.0,0.03615]
[1757941392052,0.38274,114800.0,114790.0,0.84371]
[1757941392252,0.38274,114800.0,114790.0,1.30277442]
[1757941392448,0.3608,114810.0,114790.0,1.30277442]
[1757941392651,0.40551134,114810.0,114800.0,0.03615]
[1757941392848,0.38274,114810.0,114800.0,0.46386678]
[1757941393247,0.38274,114810.0,114800.0,0.03615]
[1757941394758,0.38474,114810.0,114800.0,0.03615]
[1757941395456,0.38474,114810.0,114800.0,0.03915]
[1757941396359,0.38274,114810.0,114800.0,0.03915]
[1757941396560,0.38374,114810.0,114800.0,0.03915]
[1757941397756,0.38374,114810.0,114800.0,0.38338158]
[1757941400653,0.38374,114810.0,114800.0,0.41472922]
[1757941400849,0.38374,114810.0,114800.0,0.07049764]
[1757941401049,0.38374,114810.0,114800.0,1.22128922]
[1757941402457,0.38374,114810.0,114800.0,0.87705764]
[1757941402660,0.38374,114810.0,114800.0,1.18994158]
[1757941402961,0.38374,114810.0,114800.0,1.22128922]
[1757941403763,0.40653988,114810.0,114800.0,1.22128922]
[1757941405066,0.38459988,114810.0,114800.0,1.22128922]
[1757941405259,0.02379988,114810.0,114800.0,1.22128922]
[1757941406267,0.001,114810.0,114800.0,1.22128922]
[1757941406564,0.001,114810.0,114800.0,1.22961271]
[1757941407966,0.001,114810.0,114800.0,1.82384429]
[1757941409555,0.001,114810.0,114800.0,0.67305271]
[1757941409969,0.001,114810.0,114800.0,1.47889271]
[1757941410168,0.001,114810.0,114800.0,1.46262271]
[1757941410363,0.001,114810.0,114800.0,1.72922271]
[1757941410767,0.001,114810.0,114800.0,0.91505922]
[1757941410963,0.02387,114810.0,114800.0,0.66505922]
[1757941411163,0.42141445,114810.0,114800.0,0.32082764]
[1757941411369,0.42141445,114810.0,114800.0,1.47081922]
[1757941413566,0.42141445,114810.0,114800.0,0.66505922]
[1757941413765,0.42141445,114810.0,114800.0,1.47073922]
[1757941415775,0.42141445,114810.0,114800.0,0.66505922]
[1757941416071,0.42141445,114810.0,114800.0,1.47021922]
[1757941416269,0.42141445,114810.0,114800.0,1.20361922]
[1757941417276,0.40750445,114810.0,114800.0,1.20361922]
[1757941418373,0.40750445,114810.0,114800.0,0.85938764]
[1757941418572,0.40750445,114810.0,114800.0,1.20361922]
[1757941420667,0.40750445,114810.0,114800.0,0.85970764]
[1757941420668,0.42141445,114810.0,114800.0,0.85970764]
[1757941420875,0.42141445,114810.0,114800.0,0.84679764]
[1757941421078,0.42141445,114810.0,114800.0,1.19102922]
[1757941421478,0.42141445,114810.0,114800.0,1.19098922]
[1757941422079,0.42141445,114810.0,114800.0,1.20361922]
[1757941422580,0.40750445,114810.0,114800.0,1.20361922]
[1757941426785,0.40750445,114810.0,114800.0,0.85938764]
[1757941426975,0.40750445,114810.0,114800.0,1.20361922]
[1757941431584,0.40750445,114810.0,114800.0,1.20293922]
[1757941432785,0.40750445,114810.0,114800.0,1.17159158]
[1757941433087,0.40750445,114810.0,114800.0,1.20293922]
[1757941434283,0.38467,114810.0,114800.0,1.20293922]
[1757941439889,0.38467,114810.0,114800.0,1.54709852]
[1757941440183,0.38467,114810.0,114800.0,1.54597852]
[1757941440679,0.001,114810.0,114800.0,2.14017396]
[1757941441077,0.001,114810.0,114800.0,2.48017396]
[1757941441280,0.02353,114810.0,114800.0,0.74261852]
[1757941441577,0.02353,114810.0,114800.0,1.54605852]
[1757941441975,0.38433,114810.0,114800.0,1.54605852]
[1757941442377,0.38433,114810.0,114800.0,0.74261852]
[1757941442591,0.74136544,114810.0,114800.0,1.20166308]
[1757941442784,0.39717,114810.0,114800.0,1.54585852]
[1757941445992,0.38433,114810.0,114800.0,1.54585852]
[1757941446190,0.38433,114810.0,114800.0,0.85746764]
[1757941446390,0.38433,114810.0,114800.0,1.54585852]
[1757941446989,0.3618,114810.0,114800.0,1.89005396]
[1757941447294,0.001,114810.0,114800.0,1.89005396]
[1757941452599,0.001,114810.0,114800.0,2.25085396]
[1757941452892,0.001,114810.0,114800.0,2.76085396]
[1757941453084,0.01999435,114820.0,114800.0,3.27745396]
[1757941453395,0.01999435,114820.0,114810.0,0.75414852]
[1757941453595,0.38333,114830.0,114820.0,0.03441]
[1757941453797,0.40610576,114830.0,114820.0,1.55682852]
[1757941454595,0.38333,114830.0,114820.0,1.55682852]
[1757941454990,0.40810168,114830.0,114820.0,1.55682852]
[1757941455194,0.41010168,114830.0,114820.0,1.55682852]
[1757941455394,0.38733,114830.0,114820.0,1.55682852]
[1757941455594,0.38533,114830.0,114820.0,1.55682852]
[1757941455994,0.38533,114830.0,114820.0,0.75414852]
[1757941456596,0.38533,114830.0,114820.0,1.55638852]
[1757941457200,0.02453,114830.0,114820.0,1.55638852]
[1757941457398,0.02253,114830.0,114820.0,1.55638852]
[1757941457603,0.02353,114830.0,114820.0,1.55638852]
[1757941457800,0.02353,114830.0,114820.0,1.56452583]
[1757941458403,0.001,114830.0,114820.0,2.15872127]
[1757941458905,0.001,114830.0,114820.0,1.81452583]
[1757941461096,0.001,114830.0,114820.0,1.01228583]
[1757941461297,0.001,114830.0,114820.0,1.81428583]
[1757941461700,0.001,114830.0,114820.0,2.26928127]
[1757941462607,0.001,114830.0,114820.0,2.23793363]
[1757941463207,0.001,114830.0,114820.0,2.26928127]
[1757941463607,0.37364,114850.0,114820.0,2.27128127]
[1757941463906,0.39617,114850.0,114840.0,0.03441]
[1757941464405,0.39617,114850.0,114840.0,0.72280088]
[1757941465397,0.38333,114850.0,114840.0,0.72280088]
[1757941465597,0.38433,114850.0,114840.0,0.72280088]
[1757941466405,0.38433,114850.0,114840.0,1.52432088]
[1757941467402,0.38433,114850.0,114840.0,0.74060467]
[1757941467615,0.39709,114850.0,114840.0,1.54200467]
[1757941468101,0.39709,114850.0,114840.0,0.85361379]
[1757941468307,0.39709,114850.0,114840.0,1.54200467]
[1757941468603,0.39609,114850.0,114840.0,1.54200467]
[1757941469006,0.39609,114850.0,114840.0,1.54300467]
[1757941469206,0.38333,114850.0,114840.0,1.54300467]
[1757941470216,0.38333,114850.0,114840.0,1.57435231]
[1757941471612,0.38333,114850.0,114840.0,1.57423231]
[1757941472309,0.38333,114850.0,114840.0,1.57407231]
[1757941472708,0.38333,114850.0,114840.0,0.77295231]
[1757941473210,0.39609,114850.0,114840.0,1.57399231]
[1757941473413,0.38333,114850.0,114840.0,1.57399231]
[1757941476816,0.3608,114860.0,114840.0,1.57399231]
[1757941477007,0.38331,114860.0,114850.0,0.41087308]
[1757941477402,0.38331,114860.0,114850.0,0.37952544]
[1757941478013,0.38431,114860.0,114850.0,0.75506852]
[1757941479307,0.3618,114860.0,114850.0,0.75506852]
[1757941479815,0.38431,114860.0,114850.0,0.75506852]
[1757941480513,0.3618,114860.0,114850.0,0.75506852]
[1757941480911,0.38431,114860.0,114850.0,0.75506852]
[1757941481111,0.38431,114860.0,114850.0,1.55574852]
[1757941481307,0.38431,114860.0,114850.0,1.55570852]
[1757941481914,0.38431,114860.0,114850.0,0.75506852]
[1757941483117,0.38431,114860.0,114850.0,1.21131308]
[1757941483315,0.38431,114860.0,114850.0,0.06667764]
[1757941483513,0.38431,114860.0,114850.0,1.21131308]
[1757941483818,0.38431,114860.0,114850.0,1.55550852]
[1757941484217,0.38431,114860.0,114850.0,0.86711764]
[1757941484416,0.38431,114860.0,114850.0,1.55550852]
[1757941485614,0.38431,114860.0,114850.0,1.21131308]
[1757941485917,0.3618,114860.0,114850.0,1.21131308]
[1757941486116,0.3618,114860.0,114850.0,1.55550852]
[1757941486417,0.001,114860.0,114850.0,1.55550852]
[1757941486720,0.001,114860.0,114850.0,1.80550852]
[1757941487517,0.001,114860.0,114850.0,1.80702852]